fUST/lending_fUST_20250615
["ID","MTS","AMOUNT","RATE_DAILY","PERIOD"]
[365923337,1749987108018,-342.06437128,0.00019717,2]
[365923338,1749987114191,175.86455097,0.00016932,3]
[365923339,1749987132003,354.836449,0.00019125,2]
[365923340,1749987132342,427.26970667,0.00019636,2]
[365923343,1749987218264,-500.0,0.00019717,2]
[365923344,1749987236727,-500.0,0.00018952,2]
[365923345,1749987243129,5000.0,0.00018,2]
[365923346,1749987244110,-378.23402232,0.00018,2]
[365923347,1749987249130,-121.76597768,0.00018,2]
[365923348,1749987249153,-256.46804464,0.00018,2]
[365923349,1749987251766,-243.53195536,0.00018,2]
[365923350,1749987251786,-134.70206696,0.00018,2]
[365923351,1749987256352,-284.54928678,0.00018,2]
[365923352,1749987258929,5000.0,0.00018,2]
[365923353,1749987260902,-80.74864626,0.00018,2]
[365923354,1749987260923,-219.25135374,0.00018,2]
[365923355,1749987263025,-280.74864626,0.00018,2]
[365923356,1749987263047,-500.0,0.00018,2]
[365923357,1749987263068,-476.25135374,0.00018005,2]
[365923358,1749987274998,5000.0,0.00018,2]
[365923359,1749987292117,5000.0,0.00018,2]
[365923360,1749987308040,5000.0,0.00018,2]
[365923361,1749987325194,5000.0,0.00018,2]
[365923362,1749987340535,5000.0,0.00018,2]
[365923363,1749987341272,-23.74864626,0.00018005,2]
[365923364,1749987341299,-321.2999611,0.00019336,2]
[365923365,1749987341327,-33.18541496,0.00019699,2]
[365923366,1749987357368,-500.0,0.00019502,2]
[365923368,1749987365024,-171.9675294,0.00019502,2]
[365923369,1749987368718,505.642202,0.00013699,2]
[365923370,1749987390059,-160.47140234,0.00019072,2]
[365923371,1749987393819,-267.35103349,0.00019072,2]
[365923372,1749987403851,-500.0,0.00019072,2]
[365923373,1749987423847,-183.2082641,0.00018952,2]
[365923374,1749987427437,-321.76597768,0.00018806,2]
[365923375,1749987434280,-373.88189381,0.00018499,2]
[365923376,1749987452578,-42.21458685,0.00018499,2]
[365923377,1749987452603,-417.78541315,0.00018806,2]
[365923378,1749987456332,-222.04152509,0.00018806,2]
[365923379,1749987495520,-65.82085818,0.00018806,2]
[365923380,1749987495542,-222.04152509,0.00018852,2]
[365923381,1749987495565,-377.1471811,0.00018952,2]
[365923382,1749987495587,-83.47446308,0.00019072,2]
[365923383,1749987497631,-396.43444746,0.00019072,2]
[365923385,1749987540941,-500.0,0.00019072,2]
[365923386,1749987542992,-500.0,0.00019072,2]
[365923387,1749987548149,-183.66,0.00018881,2]
[365923388,1749987575879,-1740.84189381,0.00018881,2]
[365923389,1749987586014,-157.74935064,0.00018826,2]
[365923390,1749987612627,-320.7242476,0.00018826,2]
[365923391,1749987632766,-179.2757524,0.00018826,2]
[365923392,1749987643583,-285.27418338,0.00018826,2]
[365923393,1749987655474,-188.23937203,0.00018826,2]
[365923394,1749987655497,-26.48644459,0.00018881,2]
[365923395,1749987687779,-217.19825329,0.00018762,2]
[365923396,1749987699462,-199.12403609,0.00018762,2]
[365923397,1749987706207,-180.509078,0.00018762,2]
[365923398,1749987723696,-300.0,0.00018762,2]
[365923399,1749987727669,-200.0,0.00018762,2]
[365923400,1749987734690,-178.23402232,0.00018574,2]
[365923401,1749987739028,-169.090823,0.00018017,2]
[365923402,1749987753958,-80.5670654,0.00018017,2]
[365923403,1749987753983,-127.00906855,0.00018574,2]
[365923404,1749987775084,-397.17778172,0.00018574,2]
[365923405,1749987779811,-4297.57912741,0.00018574,2]
[365923406,1749987779832,-455.42087259,0.00018662,2]
[365923407,1749987822072,-228.62009737,0.00018475,2]
[365923408,1749987832111,-258.18036324,0.00018475,2]
[365923409,1749987843070,-202.54773747,0.00018475,2]
[365923410,1749987847476,-4310.65180192,0.00018475,2]
[365923411,1749987847500,-430.34819808,0.00018662,2]
[365923412,1749987852056,-0.79907365,0.00018662,2]
[365923413,1749987852080,-150.26498568,0.00018762,2]
[365923414,1749987861575,5000.0,0.00018,2]
[365923415,1749987863341,-163.5887944,0.00018176,2]
[365923416,1749987863364,-9.58978737,0.00018762,2]
[365923417,1749987866265,-152.11648481,0.00018368,2]
[365923418,1749987872583,-28.39259319,0.00018368,2]
[365923419,1749987872605,-157.57546241,0.00018762,2]
[365923420,1749987880966,-241.47574459,0.00018574,2]
[365923421,1749987917148,-160.0,0.00018475,2]
[365923422,1749987917170,-4758.52425541,0.00018574,2]
[365923423,1749987922206,0.47574459,0.00018574,2]
[365923424,1749987923337,-166.0273955,0.00018574,2]
[365923425,1749987930457,-222.25790411,0.00018574,2]
[365923426,1749987933624,1066.67996996,0.00017996,2]
[365923427,1749987934714,-333.9726045,0.00018182,2]
[365923428,1749987960386,-160.0,0.00018146,2]
[365923429,1749987968281,-151.73750998,0.00018081,2]
[365923430,1749987977506,-193.18030738,0.00018081,2]
[365923431,1749987977528,-38.25342654,0.00018146,2]
[365923432,1749987986734,-160.58177857,0.00018046,3]
[365923433,1749987986756,-582.30331006,0.00018146,2]
[365923434,1749987986778,-344.91781735,0.00018179,2]
[365923435,1749987986800,-300.0,0.00018181,2]
[365923436,1749987986824,-300.0,0.00018181,2]
[365923437,1749987986846,-24566.0273955,0.00018182,2]
[365923438,1749987986867,-344.91781735,0.00018278,2]
[365923439,1749987986888,-344.91781735,0.00018376,2]
[365923440,1749987986909,-344.91781735,0.00018474,2]
[365923441,1749987986931,-4508.41624647,0.00018574,2]
[365923442,1749987998696,-293.72853395,0.00018091,2]
[365923443,1749988014113,-14617.72764394,0.00018091,2]
[365923444,1749988014667,-247.45697488,0.00018091,2]
[365923445,1749988023595,-186.4796638,0.0001809,2]
[365923446,1749988029136,-113.5203362,0.0001809,2]
[365923447,1749988029157,-1626.06214649,0.00018091,2]
[365923448,1749988030065,-285.19929943,0.00018091,2]
[365923449,1749988036084,-1480.39191351,0.00018091,2]
[365923450,1749988036905,-154.16074048,0.00018091,2]
[365923451,1749988037570,279.49178948,0.00017549,2]
[365923452,1749988051095,-2291.8037686,0.00018091,2]
[365923453,1749988051878,-226.35468164,0.00018091,2]
[365923454,1749988053079,-2095.36164293,0.00018091,2]
[365923455,1749988057711,-9819.37682535,0.00018091,2]
[365923456,1749988057733,-71.62317465,0.00018574,2]
[365923457,1749988111262,5000.0,0.00018,2]
[365923458,1749988113333,-160.0,0.00018091,2]
[365923459,1749988116193,541.18550883,0.00017996,2]
[365923460,1749988127828,-159.94127445,0.00018574,2]
[365923466,1749988147159,-4840.05872555,0.00018574,2]
[365923467,1749988147181,-318.41979716,0.00018762,2]
[365923468,1749988147202,-155.0,0.00018762,2]
[365923469,1749988147222,-3459.60757862,0.000189,2]
[365923470,1749988147243,-171.8814983,0.00018926,2]
[365923471,1749988147265,-300.0,0.00018955,2]
[365923472,1749988147287,-1833.8144112,0.00018956,2]
[365923473,1749988147307,-241.47574459,0.00019,2]
[365923474,1749988147328,-177.65158058,0.00019032,2]
[365923475,1749988147500,-192.27252252,0.00019032,2]
[365923476,1749988147522,-1200.0,0.00019061,2]
[365923477,1749988147543,-204.14,0.00019062,2]
[365923478,1749988147564,-254.73879835,0.00019062,2]
[365923479,1749988147586,-444.44792709,0.00019069,2]
[365923480,1749988147608,-352.31790567,0.00019069,2]
[365923481,1749988147632,-500.0,0.00019069,2]
[365923482,1749988147654,-491.88350337,0.00019069,2]
[365923483,1749988147676,-500.0,0.00019069,2]
[365923484,1749988147699,-186.36916042,0.00019069,2]
[365923485,1749988147721,-500.0,0.00019069,2]
[365923486,1749988147743,-500.0,0.00019069,2]
[365923487,1749988147765,-500.0,0.00019069,2]
[365923488,1749988147788,-500.0,0.00019069,2]
[365923489,1749988147809,-500.0,0.00019069,2]
[365923490,1749988147830,-500.0,0.00019069,2]
[365923491,1749988147852,-500.0,0.00019069,2]
[365923492,1749988147872,-500.0,0.00019069,2]
[365923493,1749988147894,-389.85384392,0.00019069,2]
[365923494,1749988147914,-300.0,0.0001907,2]
[365923495,1749988147935,-6894.12568673,0.00019072,2]
[365923496,1749988147955,-292.31380535,0.00019078,2]
[365923497,1749988147976,-333.02047055,0.00019078,2]
[365923498,1749988148000,-460.0,0.00019178,2]
[365923499,1749988148022,-440.0,0.00019178,2]
[365923500,1749988148046,-376.35092718,0.00019178,2]
[365923501,1749988148070,-719.76,0.00019178,2]
[365923502,1749988148095,-657.94,0.00019178,2]
[365923503,1749988148117,-676.05,0.00019178,2]
[365923504,1749988148140,-460.0,0.00019178,2]
[365923505,1749988148163,-460.0,0.00019178,2]
[365923506,1749988148186,-460.0,0.00019178,2]
[365923507,1749988148208,-460.0,0.00019178,2]
[365923508,1749988148231,-460.0,0.00019178,2]
[365923509,1749988148254,-460.0,0.00019178,2]
[365923510,1749988148278,-879.17,0.00019178,2]
[365923511,1749988148301,-460.0,0.00019178,2]
[365923512,1749988148324,-1330.21,0.00019178,2]
[365923513,1749988148348,-1480.44,0.00019178,2]
[365923514,1749988148374,-460.0,0.00019178,2]
[365923515,1749988148396,-460.0,0.00019178,2]
[365923516,1749988148420,-460.0,0.00019178,2]
[365923517,1749988148441,-420.0,0.00019178,2]
[365923518,1749988148463,-460.0,0.00019178,2]
[365923519,1749988148485,-460.0,0.00019178,2]
[365923520,1749988148508,-460.0,0.00019178,2]
[365923521,1749988148532,-460.0,0.00019178,2]
[365923522,1749988148555,-460.0,0.00019178,2]
[365923523,1749988148578,-460.0,0.00019178,2]
[365923524,1749988148600,-460.0,0.00019178,2]
[365923525,1749988148622,-500.0,0.00019178,2]
[365923526,1749988148644,-500.0,0.00019178,2]
[365923527,1749988148665,-500.0,0.00019178,2]
[365923528,1749988148686,-500.0,0.00019178,2]
[365923529,1749988148708,-500.0,0.00019178,2]
[365923530,1749988148728,-500.0,0.00019178,2]
[365923531,1749988148750,-500.0,0.00019178,2]
[365923532,1749988148771,-391.23186026,0.00019178,2]
[365923533,1749988148791,-500.0,0.00019178,2]
[365923534,1749988148814,-500.0,0.00019178,2]
[365923535,1749988148838,-669.6,0.00019178,2]
[365923536,1749988148860,-495.76514817,0.00019178,2]
[365923537,1749988148883,-350.0,0.00019178,2]
[365923538,1749988148905,-460.0,0.00019178,2]
[365923539,1749988148926,-460.0,0.00019178,2]
[365923540,1749988148948,-500.0,0.00019178,2]
[365923541,1749988148971,-719.76,0.00019452,2]
[365923542,1749988148994,-657.94,0.00019452,2]
[365923543,1749988149019,-676.05,0.00019452,2]
[365923544,1749988149045,-460.0,0.00019452,2]
[365923545,1749988149068,-460.0,0.00019452,2]
[365923546,1749988149091,-440.0,0.00019452,2]
[365923547,1749988149118,-400.0,0.00019452,2]
[365923548,1749988149143,-879.17,0.00019452,2]
[365923549,1749988149167,-440.0,0.00019452,2]
[365923550,1749988149191,-1330.21,0.00019452,2]
[365923551,1749988149215,-1480.44,0.00019452,2]
[365923552,1749988149239,-460.0,0.00019452,2]
[365923553,1749988149261,-460.0,0.00019452,2]
[365923554,1749988149283,-460.0,0.00019452,2]
[365923555,1749988149305,-460.0,0.00019452,2]
[365923556,1749988149327,-460.0,0.00019452,2]
[365923557,1749988149351,-669.6,0.00019452,2]
[365923558,1749988149373,-120.18644017,0.00019699,2]
[365923559,1749988149395,-288.56715027,0.00019716,2]
[365923560,1749988149420,-500.0,0.00019716,2]
[365923561,1749988149444,-500.0,0.00019716,2]
[365923562,1749988149466,-500.0,0.00019716,2]
[365923563,1749988149489,-500.0,0.00019716,2]
[365923564,1749988149511,-500.0,0.00019716,2]
[365923565,1749988149534,-500.0,0.00019716,2]
[365923566,1749988149557,-500.0,0.00019716,2]
[365923567,1749988149580,-500.0,0.00019716,2]
[365923568,1749988149603,-500.0,0.00019716,2]
[365923569,1749988149626,-500.0,0.00019716,2]
[365923570,1749988149649,-500.0,0.00019716,2]
[365923571,1749988149672,-500.0,0.00019716,2]
[365923572,1749988149695,-500.0,0.00019716,2]
[365923573,1749988149719,-228.63613584,0.00019716,2]
[365923574,1749988149741,-500.0,0.00019716,2]
[365923575,1749988149764,-500.0,0.00019716,2]
[365923576,1749988149787,-500.0,0.00019716,2]
[365923577,1749988149809,-512.5,0.00019716,2]
[365923578,1749988149832,-512.5,0.00019716,2]
[365923579,1749988149854,-512.5,0.00019716,2]
[365923580,1749988149876,-512.5,0.00019716,2]
[365923581,1749988149897,-512.5,0.00019716,2]
[365923582,1749988149920,-512.5,0.00019716,2]
[365923583,1749988149941,-512.5,0.00019716,2]
[365923584,1749988149964,-512.5,0.00019716,2]
[365923585,1749988149985,-512.5,0.00019716,2]
[365923586,1749988150006,-460.45291636,0.00019717,2]
[365923587,1749988150029,-420.0,0.00019717,2]
[365923588,1749988150050,-460.0,0.00019717,2]
[365923589,1749988150071,-460.0,0.00019717,2]
[365923590,1749988150092,-420.0,0.00019717,2]
[365923591,1749988150117,-420.0,0.00019717,2]
[365923592,1749988150138,-390.0,0.00019717,2]
[365923593,1749988150160,-548.9,0.00019717,2]
[365923594,1749988150183,-420.0,0.00019717,2]
[365923595,1749988150205,-365.14201447,0.00019717,2]
[365923596,1749988150229,-511.95392725,0.00019717,2]
[365923597,1749988150252,-460.0,0.00019717,2]
[365923598,1749988150274,-459.99499075,0.00019717,2]
[365923599,1749988150297,-555.09,0.00019717,2]
[365923600,1749988150320,-460.0,0.00019717,2]
[365923601,1749988150342,-460.0,0.00019717,2]
[365923602,1749988150365,-460.0,0.00019717,2]
[365923603,1749988150385,-440.0,0.00019717,2]
[365923604,1749988150407,-440.0,0.00019717,2]
[365923605,1749988150428,-400.0,0.00019717,2]
[365923606,1749988150450,-440.0,0.00019717,2]
[365923607,1749988150473,-460.0,0.00019717,2]
[365923608,1749988150494,-440.0,0.00019717,2]
[365923609,1749988150515,-460.0,0.00019717,2]
[365923610,1749988150537,-460.0,0.00019717,2]
[365923611,1749988150559,-460.0,0.00019717,2]
[365923612,1749988150582,-420.0,0.00019717,2]
[365923613,1749988150604,-460.0,0.00019717,2]
[365923614,1749988150626,-440.0,0.00019717,2]
[365923615,1749988150648,-440.0,0.00019717,2]
[365923616,1749988150670,-460.0,0.00019717,2]
[365923617,1749988150692,-460.0,0.00019717,2]
[365923618,1749988150714,-430.0,0.00019717,2]
[365923619,1749988150736,-440.0,0.00019717,2]
[365923620,1749988150757,-460.0,0.00019717,2]
[365923621,1749988150779,-460.0,0.00019717,2]
[365923622,1749988150802,-460.0,0.00019717,2]
[365923623,1749988150826,-719.76,0.00019726,2]
[365923624,1749988150852,-657.94,0.00019726,2]
[365923625,1749988150876,-676.05,0.00019726,2]
[365923626,1749988150898,-460.0,0.00019726,2]
[365923627,1749988150921,-879.17,0.00019726,2]
[365923628,1749988150944,-1330.21,0.00019726,2]
[365923629,1749988150967,-1480.44,0.00019726,2]
[365923630,1749988150990,-460.0,0.00019726,2]
[365923631,1749988151011,-478.87,0.00019726,2]
[365923632,1749988151035,-460.0,0.00019726,2]
[365923633,1749988151056,-460.0,0.00019726,2]
[365923634,1749988151079,-669.6,0.00019726,2]
[365923635,1749988151124,460.0,0.00019178,2]
[365923636,1749988151152,530.625,0.00019716,2]
[365923637,1749988151190,460.0,0.00019452,2]
[365923638,1749988151217,530.625,0.00019716,2]
[365923639,1749988151381,460.0,0.00019726,2]
[365923640,1749988152717,361.89023076,0.00019717,2]
[365923641,1749988160094,-460.0,0.00019178,2]
[365923642,1749988160115,-5000.0,0.0001952,2]
[365923643,1749988160137,-98.10976924,0.00019717,2]
[365923644,1749988160157,-420.0,0.00019833,2]
[365923645,1749988160324,460.0,0.00019717,2]
[365923646,1749988164521,460.0,0.00019717,2]
[365923647,1749988169759,460.0,0.00019178,2]
[365923649,1749988173695,5000.0,0.00019716,2]
[365923650,1749988177654,430.0,0.00019178,2]
[365923651,1749988178949,460.0,0.00019178,2]
[365923652,1749988179213,465.89,0.00019452,2]
[365923653,1749988182934,460.0,0.00019178,2]
[365923654,1749988183118,460.0,0.00019717,2]
[365923655,1749988185942,460.0,0.00019717,2]
[365923656,1749988188942,5000.0,0.00019716,2]
[365923657,1749988193622,250.0,0.00019717,2]
[365923658,1749988198281,646.09,0.00019178,2]
[365923659,1749988198705,646.09,0.00019452,2]
[365923660,1749988198792,646.09,0.00019726,2]
[365923661,1749988200914,190.08386041,0.00019178,2]
[365923662,1749988200936,586.86613959,0.00019178,2]
[365923663,1749988201187,776.95,0.00019452,2]
[365923664,1749988211340,179.354217,0.00019189,2]
[365923665,1749988214568,420.0,0.00019178,2]
[365923666,1749988219139,636.14,0.00019178,2]
[365923667,1749988219398,636.14,0.00019452,2]
[365923668,1749988225499,410.0,0.00019178,2]
[365923695,1749988232474,-5000.0,0.00019716,2]
[365923696,1749988232484,-1168.62,0.00019717,2]
[365923697,1749988232493,-460.0,0.00019717,2]
[365923698,1749988232503,-776.95,0.00019726,2]
[365923699,1749988232512,-636.14,0.00019726,2]
[365923701,1749988232521,-333.0204705,0.00019915,2]
[365923702,1749988232530,-500.0,0.0001995,2]
[365923703,1749988232539,-1193.0,0.00019989,2]
[365923704,1749988232550,-300.0,0.0001999,2]
[365923705,1749988232559,-300.0,0.0001999,2]
[365923706,1749988232568,-300.0,0.0001999,2]
[365923707,1749988232578,-460.0,0.00019991,2]
[365923709,1749988232588,-400.0,0.00019991,2]
[365923711,1749988232597,-460.0,0.00019991,2]
[365923713,1749988232606,-365.48819412,0.00019991,2]
[365923727,1749988232734,-94.51180588,0.00019991,2]
[365923729,1749988232743,-138.30615445,0.00019991,2]
[365923769,1749988234865,5000.0,0.00019519,2]
[365923770,1749988236062,530.26,0.00019178,2]
[365923774,1749988238527,-440.0,0.00019717,2]
[365923775,1749988238537,-170.02460827,0.00019717,2]
[365923776,1749988238632,-58.99937544,0.00019717,2]
[365923780,1749988238644,-321.69384555,0.00019991,2]
[365923782,1749988238655,-440.0,0.00019991,2]
[365923783,1749988238664,-460.0,0.00019991,2]
[365923785,1749988238674,-472.88,0.00019991,2]
[365923786,1749988238684,-551.73,0.00019991,2]
[365923787,1749988238695,-460.0,0.00019991,2]
[365923788,1749988238704,-460.0,0.00019991,2]
[365923789,1749988238714,-460.0,0.00019991,2]
[365923790,1749988238724,-460.0,0.00019991,2]
[365923792,1749988238734,-1168.62,0.00019991,2]
[365923794,1749988238743,-460.0,0.00019991,2]
[365923796,1749988238753,-460.0,0.00019999,2]
[365923798,1749988238763,-460.0,0.00019999,2]
[365923800,1749988238772,-1744.0,0.0002,2]
[365923801,1749988238782,-879.17,0.0002,2]
[365923803,1749988238791,-1330.21,0.0002,2]
[365923805,1749988238800,-1480.44,0.0002,2]
[365923807,1749988238810,-460.0,0.0002,2]
[365923809,1749988238819,-460.0,0.0002,2]
[365923811,1749988238829,-669.6,0.0002,2]
[365923812,1749988238837,-460.0,0.0002,2]
[365923814,1749988238847,-646.09,0.0002,2]
[365923816,1749988238856,-776.95,0.0002,2]
[365923818,1749988238866,-636.14,0.0002,2]
[365923820,1749988238875,-168.0,0.00020113,2]
[365923821,1749988238885,-600.0,0.00020164,2]
[365923823,1749988238895,-500.0,0.00020172,2]
[365923825,1749988238904,-505.53376577,0.00020172,2]
[365923827,1749988238914,-177.72666715,0.00020173,2]
[365923828,1749988238924,-505.642202,0.00020187,2]
[365923829,1749988238933,-587.0,0.00020247,2]
[365923830,1749988238942,-460.0,0.00020265,2]
[365923831,1749988238951,-460.0,0.00020265,2]
[365923832,1749988238960,-529.02406173,0.00020265,2]
[365923833,1749988238969,-460.0,0.00020265,2]
[365923835,1749988238979,-520.65,0.00020265,2]
[365923836,1749988238988,-460.0,0.00020265,2]
[365923837,1749988238998,-460.0,0.00020265,2]
[365923839,1749988239007,-1168.62,0.00020265,2]
[365923841,1749988239016,-460.0,0.00020265,2]
[365923843,1749988239025,-879.17,0.00020273,2]
[365923845,1749988239034,-1330.21,0.00020273,2]
[365923847,1749988239044,-1480.44,0.00020273,2]
[365923849,1749988239057,-460.0,0.00020273,2]
[365923851,1749988239066,-460.0,0.00020273,2]
[365923853,1749988239075,-460.0,0.00020273,2]
[365923855,1749988239084,-669.6,0.00020273,2]
[365923857,1749988239094,-456.08,0.00020273,2]
[365923859,1749988239103,-646.09,0.00020273,2]
[365923861,1749988239112,-776.95,0.00020273,2]
[365923863,1749988239123,-636.14,0.00020273,2]
[365923865,1749988239134,-194.87587024,0.00020346,2]
[365923867,1749988239143,-500.0,0.00020375,2]
[365923869,1749988239152,-420.0,0.00020446,2]
[365923871,1749988239162,-420.0,0.00020446,2]
[365923873,1749988239171,-380.0,0.00020446,2]
[365923875,1749988239179,-380.0,0.00020446,2]
[365923877,1749988239189,-460.0,0.00020446,2]
[365923879,1749988239198,-380.0,0.00020446,2]
[365923881,1749988239207,-390.0,0.00020446,2]
[365923883,1749988239216,-460.0,0.00020446,2]
[365923885,1749988239226,-460.0,0.00020446,2]
[365923887,1749988239235,-410.0,0.00020446,2]
[365923889,1749988239244,-420.0,0.00020446,2]
[365923891,1749988239254,-460.0,0.00020446,2]
[365923893,1749988239263,-460.0,0.00020446,2]
[365923895,1749988239273,-460.0,0.00020446,2]
[365923897,1749988239282,-420.0,0.00020446,2]
[365923899,1749988239292,-231.2659497,0.00020446,2]
[365923901,1749988239301,-500.0,0.00020446,2]
[365923903,1749988239310,-460.0,0.00020446,2]
[365923905,1749988239319,-460.0,0.00020446,2]
[365923907,1749988239328,-460.0,0.00020446,2]
[365923909,1749988239337,-460.0,0.00020446,2]
[365923911,1749988239346,-460.0,0.00020446,2]
[365923913,1749988239355,-420.0,0.00020446,2]
[365923915,1749988239364,-460.0,0.00020446,2]
[365923917,1749988239374,-460.0,0.00020446,2]
[365923919,1749988239383,-420.0,0.00020446,2]
[365923921,1749988239393,-460.0,0.00020446,2]
[365923923,1749988239402,-460.0,0.00020446,2]
[365923925,1749988239411,-420.0,0.00020446,2]
[365923927,1749988239420,-460.0,0.00020446,2]
[365923929,1749988239430,-460.0,0.00020446,2]
[365923931,1749988239440,-460.0,0.00020446,2]
[365923934,1749988239451,-487.51432381,0.00020446,2]
[365923936,1749988239461,-460.0,0.00020446,2]
[365923938,1749988239471,-410.0,0.00020446,2]
[365923940,1749988239480,-420.0,0.00020446,2]
[365923942,1749988239490,-420.0,0.00020446,2]
[365923944,1749988239499,-270.0,0.00020446,2]
[365923946,1749988239509,-420.0,0.00020446,2]
[365923948,1749988239519,-460.0,0.00020446,2]
[365923950,1749988239529,-460.0,0.00020446,2]
[365923952,1749988239538,-420.0,0.00020446,2]
[365923954,1749988239548,-460.0,0.00020446,2]
[365923956,1749988239557,-420.0,0.00020446,2]
[365923958,1749988239567,-460.0,0.00020446,2]
[365923960,1749988239576,-460.0,0.00020446,2]
[365923962,1749988239586,-420.0,0.00020446,2]
[365923964,1749988239595,-460.0,0.00020446,2]
[365923966,1749988239605,-466.23351425,0.00020446,2]
[365923968,1749988239615,-420.0,0.00020446,2]
[365923970,1749988239624,-674.0,0.00020446,2]
[365923972,1749988239634,-420.0,0.00020446,2]
[365923974,1749988239644,-400.0,0.00020446,2]
[365923976,1749988239653,-420.0,0.00020446,2]
[365923978,1749988239663,-460.0,0.00020446,2]
[365923980,1749988239673,-420.0,0.00020446,2]
[365923982,1749988239683,-1000.0,0.00020446,2]
[365923984,1749988239693,-525.02,0.00020446,2]
[365923986,1749988239702,-420.0,0.00020446,2]
[365923988,1749988239712,-380.0,0.00020446,2]
[365923989,1749988239721,-460.0,0.00020446,2]
[365923991,1749988239731,-460.0,0.00020446,2]
[365923993,1749988239740,-460.0,0.00020446,2]
[365923995,1749988239749,-460.0,0.00020446,2]
[365923997,1749988239759,-403.49630106,0.00020446,2]
[365923999,1749988239769,-738.06,0.00020446,2]
[365924000,1749988239779,-460.0,0.00020446,2]
[365924001,1749988239790,-420.0,0.00020446,2]
[365924002,1749988239799,-611.57,0.00020446,2]
[365924003,1749988239809,-420.0,0.00020446,2]
[365924004,1749988239819,-380.0,0.00020446,2]
[365924005,1749988239828,-420.0,0.00020446,2]
[365924006,1749988239838,-380.0,0.00020446,2]
[365924007,1749988239847,-1472.45,0.00020446,2]
[365924008,1749988239857,-400.0,0.00020446,2]
[365924009,1749988239867,-1000.0,0.00020447,2]
[365924010,1749988239878,-1000.0,0.00020447,2]
[365924011,1749988239887,-1417.68272245,0.00020447,2]
[365924012,1749988239897,-310.0,0.00020448,2]
[365924013,1749988239907,-460.0,0.00020448,2]
[365924015,1749988239917,-1000.0,0.00020449,2]
[365924016,1749988239926,-587.0,0.00020502,2]
[365924017,1749988239936,-212.419,0.00020532,2]
[365924018,1749988239946,-460.0,0.00020539,2]
[365924019,1749988239955,-460.0,0.00020539,2]
[365924020,1749988239965,-318.3678971,0.00020539,2]
[365924021,1749988239975,-460.0,0.00020539,2]
[365924022,1749988239984,-460.0,0.00020539,2]
[365924023,1749988239993,-1168.62,0.00020539,2]
[365924024,1749988240002,-460.0,0.00020539,2]
[365924025,1749988240011,-879.17,0.00020547,2]
[365924026,1749988240021,-1330.21,0.00020547,2]
[365924027,1749988240030,-1480.44,0.00020547,2]
[365924028,1749988240040,-460.0,0.00020547,2]
[365924029,1749988240050,-460.0,0.00020547,2]
[365924030,1749988240062,-460.0,0.00020547,2]
[365924031,1749988240072,-669.6,0.00020547,2]
[365924032,1749988240082,-646.09,0.00020547,2]
[365924033,1749988240092,-776.95,0.00020547,2]
[365924034,1749988240102,-636.14,0.00020547,2]
[365924035,1749988240111,-587.0,0.00020597,2]
[365924036,1749988240121,-469.74,0.000206,2]
[365924037,1749988240133,-564.74,0.00020657,10]